bitfinex-derivatives/quotes_SOLF0:USTF0_20250127
["timestamp","ask_amount","ask_price","bid_price","bid_amount"]
[1737986907109,0.03215583,230.94,230.89,0.02811727]
[1737986907806,0.03215583,230.94,230.92,28.23983743]
[1737986908211,0.03215583,230.94,230.93,4.3305]
[1737986908808,1.5223,231.13,230.92,28.23983743]
[1737986909012,1.8585,231.12,231.0,28.23983743]
[1737986909209,28.23983743,231.1,230.87,28.23983743]
[1737986909610,28.23983743,231.06,230.87,28.23983743]
[1737986909806,0.03219876,231.01,230.96,0.03240516]
[1737986910109,0.03219876,231.01,230.87,28.23983743]
[1737986910311,4.3292,231.0,230.9,4.331]
[1737986910510,28.23983743,231.06,230.87,28.23983743]
[1737986910812,4.3299,230.96,230.87,28.23983743]
[1737986911012,28.23983743,231.06,230.87,28.23983743]
[1737986911212,0.02748698,230.94,230.89,0.02980658]
[1737986911412,28.23983743,231.06,230.87,28.23983743]
[1737986911613,0.03078339,230.94,230.89,0.03037265]
[1737986911908,0.02960991,230.94,230.89,0.0303863]
[1737986912312,0.02960991,230.94,230.89,4.3615863]
[1737986912811,0.02960991,230.94,230.89,0.0303863]
[1737986913207,1.5889,231.09,230.91,28.23983743]
[1737986913512,1.5889,231.09,230.96,28.23983743]
[1737986914113,1.5889,231.09,231.02,4.3288]
[1737986914308,1.5889,231.09,230.96,28.23983743]
[1737986914509,0.02952881,231.08,231.03,0.03030245]
[1737986915107,4.3282,231.06,231.03,0.03030245]
[1737986915313,28.23983743,231.06,230.87,28.23983743]
[1737986915715,4.3293,231.0,230.9,4.331]
[1737986916214,4.3293,231.0,230.87,28.23983743]
[1737986916407,0.02782094,230.97,230.93,0.03015876]
[1737986917012,0.02782094,230.97,230.94,4.3302]
[1737986917217,0.02782094,230.97,230.93,0.03015876]
[1737986917519,0.02782094,230.97,230.93,4.36065876]
[1737986918011,0.02782094,230.97,230.93,0.03015876]
[1737986919317,4.35752094,230.97,230.93,0.03015876]
[1737986919621,0.02782094,230.97,230.93,0.03015876]
[1737986920120,0.02782094,230.97,230.93,4.36065876]
[1737986920419,0.02782094,230.97,230.93,0.03015876]
[1737986921821,0.02782094,230.97,230.96,4.3299]
[1737986922016,4.3284,231.04,230.95,28.23983743]
[1737986922417,1.5889,231.09,230.95,28.23983743]
[1737986923121,4.3282,231.05,230.99,4.3292]
[1737986923420,0.03005418,231.04,230.99,0.02861246]
[1737986923728,4.3292,231.0,230.99,0.02861246]
[1737986924027,0.03005418,231.04,230.91,4.3307]
[1737986924226,4.3292,231.01,230.91,4.3307]
[1737986924426,1.5471,231.03,230.94,4.3301]
[1737986924627,1.5889,231.09,230.94,4.3301]
[1737986924819,4.3286,231.03,230.95,4.3301]
[1737986925026,4.35681478,231.03,230.99,0.03183288]
[1737986925330,0.02821478,231.03,230.99,0.03183288]
[1737986927130,4.3288,231.02,230.99,0.03183288]
[1737986927324,0.02821478,231.03,230.99,0.03183288]
[1737986927627,0.02821478,231.03,231.02,4.3288]
[1737986928728,0.02821478,231.03,230.99,4.36103288]
[1737986929623,0.02821478,231.03,230.99,0.03183288]
[1737986930528,4.3291,231.01,230.99,0.03183288]
[1737986931630,4.35701478,231.03,230.99,0.03183288]
[1737986931827,0.02821478,231.03,230.99,0.03183288]
[1737986932031,4.3292,231.01,230.99,0.03183288]
[1737986932234,0.02821478,231.03,230.99,0.03183288]
[1737986932635,4.329,231.02,230.99,0.03183288]
[1737986932831,0.02821478,231.03,230.99,0.03183288]
[1737986934231,0.02821478,231.03,230.99,4.36113288]
[1737986934535,0.02821478,231.03,230.99,0.03183288]
[1737986934835,0.02821478,231.03,231.0,4.3291]
[1737986935033,0.02821478,231.03,230.99,0.03183288]
[1737986935436,0.02821478,231.03,231.01,4.3288]
[1737986936737,0.02821478,231.03,230.99,0.03183288]
[1737986938138,4.35691478,231.03,230.99,0.03183288]
[1737986938941,4.3298,230.97,230.89,4.3311]
[1737986939135,4.3298,230.97,230.87,28.23983743]
[1737986939639,4.3298,230.97,230.91,4.3309]
[1737986939839,4.3299,230.96,230.91,4.3309]
[1737986940039,4.36160358,230.96,230.92,0.03112123]
[1737986940239,3.58e-06,230.96,230.95,28.23983743]
[1737986940638,1.8787,231.08,230.95,17.25210011]
[1737986941136,17.25210011,231.05,230.83,17.25210011]
[1737986941340,17.25210011,231.01,230.83,17.25210011]
[1737986941835,17.25210011,230.93,230.76,4.337]
[1737986942140,17.25210011,231.12,230.89,17.25210011]
[1737986942336,3.38,231.22,230.93,17.25210011]
[1737986942337,3.2715,231.06,230.93,17.25210011]
[1737986942541,3.2715,231.06,230.97,28.0360611]
[1737986942738,3.2715,231.06,231.0,4.3292]
[1737986942939,3.2715,231.06,230.93,28.0360611]
[1737986943140,0.03290044,231.05,231.01,0.03011679]
[1737986944045,4.3288,231.02,231.01,0.03011679]
[1737986947340,28.0360611,231.04,230.85,28.0360611]
[1737986947845,4.3307,230.93,230.83,4.3323]
[1737986948244,28.0360611,231.04,230.85,28.0360611]
[1737986948541,6.418e-05,230.9,230.89,28.0360611]
[1737986948845,1.5244,231.05,230.89,31.4160611]
[1737986949045,3.2715,231.06,230.97,28.0360611]
[1737986949646,3.2715,231.06,230.93,28.0360611]
[1737986949845,0.0304977,231.04,230.99,0.03126387]
[1737986950340,0.0304977,231.04,230.8,0.1512]
[1737986950539,28.0360611,231.05,230.85,28.0360611]
[1737986950738,4.3294,230.99,230.85,28.0360611]
[1737986950944,28.0360611,231.05,230.85,32.3679611]
[1737986951246,28.0360611,231.05,230.85,28.0360611]
[1737986951445,28.0360611,231.05,230.89,28.0360611]
[1737986951646,0.02945462,230.97,230.93,0.03016004]
[1737986952141,4.33,230.96,230.93,0.03016004]
[1737986952946,4.3303,230.95,230.93,0.03016004]
[1737986953245,0.02945462,230.97,230.81,28.0360611]
[1737986953643,28.0360611,231.01,230.81,28.0360611]
[1737986954346,4.3314,230.88,230.81,28.0360611]
[1737986954740,0.03176238,230.87,230.84,4.3321]
[1737986954945,1.483,231.04,230.85,28.0360611]
[1737986955241,4.3296,230.98,230.9,32.3669611]
[1737986955449,1.9592,231.03,230.86,28.0360611]
[1737986955745,1.4945,231.02,230.86,28.0360611]
[1737986956145,0.02915196,230.96,230.92,0.02864444]
[1737986956749,4.35915196,230.96,230.92,0.02864444]
[1737986957043,0.02915196,230.96,230.92,0.02864444]
[1737986959144,4.3305,230.93,230.92,0.02864444]
[1737986959351,0.02915196,230.96,230.79,74.24]
[1737986959543,28.0360611,230.97,230.79,74.24]
[1737986959750,28.0360611,230.93,230.79,74.24]
[1737986959949,3.3566,230.92,230.79,74.24]
[1737986960249,3.3566,230.92,230.68,4.337]
[1737986960250,28.0360611,230.85,230.68,28.0360611]
[1737986960450,28.0360611,230.85,230.64,28.0360611]
[1737986960650,28.0360611,230.85,230.64,32.3719611]
[1737986960845,28.0360611,230.81,230.6,74.26]
[1737986961143,0.02833657,230.77,230.6,102.2960611]
[1737986961349,3.3566,230.8,230.64,28.0360611]
[1737986961545,0.0322401,230.71,230.64,28.0360611]
[1737986961848,0.0322401,230.71,230.65,4.3357]
[1737986962049,0.0322401,230.71,230.64,28.0360611]
[1737986963051,4.3669401,230.71,230.64,28.0360611]
[1737986963244,0.0322401,230.71,230.64,28.0360611]
[1737986964350,0.0322401,230.71,230.64,32.3719611]
[1737986964651,0.0322401,230.71,230.63,17.30422884]
[1737986964849,0.0322401,230.71,230.65,4.3357]
[1737986965051,0.0322401,230.71,230.63,17.30422884]
[1737986965252,0.0322401,230.71,230.55,17.30422884]
[1737986965552,4.3358,230.65,230.55,21.64172884]
[1737986965754,1.5654,230.7,230.55,17.30422884]
[1737986965950,0.02753605,230.65,230.59,17.30422884]
[1737986966146,1.5654,230.78,230.59,17.30422884]
[1737986966345,1.5654,230.78,230.51,17.30422884]
[1737986966346,0.03148427,230.64,230.51,17.30422884]
[1737986966548,17.30422884,230.71,230.51,17.30422884]
[1737986967051,0.03323717,230.6,230.51,17.30422884]
[1737986968256,0.03323717,230.6,230.54,4.3377]
[1737986968456,0.03323717,230.6,230.55,17.30422884]
[1737986969455,0.03323717,230.6,230.57,4.3372]
[1737986969655,0.03323717,230.6,230.55,17.30422884]
[1737986970355,0.03323717,230.6,230.52,17.30422884]
[1737986971755,0.03323717,230.6,230.54,4.3376]
[1737986971956,0.03323717,230.6,230.52,17.30422884]
[1737986973255,0.03323717,230.6,230.55,4.3375]
[1737986974052,0.03323717,230.6,230.52,17.30422884]
[1737986974257,0.03323717,230.6,230.48,0.6205]
[1737986974757,0.03323717,230.6,230.47,17.30422884]
[1737986975057,17.33746601,230.6,230.42,74.3]
[1737986975250,17.30422884,230.6,230.42,74.3]
[1737986975456,4.3385,230.51,230.42,78.64]
[1737986975751,0.02893433,230.53,230.42,74.3]
[1737986975956,1.5126,230.52,230.42,74.3]
[1737986976955,0.02893433,230.53,230.44,17.30422884]
[1737986977556,0.02893433,230.53,230.47,4.3391]
[1737986978053,0.02893433,230.53,230.44,17.30422884]
[1737986978257,0.02893433,230.53,230.49,4.3387]
[1737986978657,0.02893433,230.53,230.44,17.30422884]
[1737986978852,0.02893433,230.53,230.48,17.30422884]
[1737986979359,0.02893433,230.53,230.51,4.3383]
[1737986980760,0.02893433,230.53,230.52,4.3382]
[1737986981258,1.4909,230.67,230.52,17.30422884]
[1737986981458,1.4909,230.67,230.57,4.3372]
[1737986981860,4.3358,230.65,230.57,4.3372]
[1737986982061,1.4909,230.67,230.59,4.3368]
[1737986982260,1.4909,230.67,230.56,17.30422884]
[1737986982457,4.3643041,230.65,230.61,0.03141125]
[1737986983162,0.0284041,230.65,230.61,0.03141125]
[1737986984363,0.0284041,230.65,230.51,4.3382]
[1737986984562,1.4909,230.67,230.51,4.3382]
[1737986984762,1.4909,230.67,230.47,20.68422884]
[1737986984962,1.4909,230.67,230.51,17.30422884]
[1737986985165,1.4909,230.67,230.56,17.30422884]
[1737986985359,1.4909,230.67,230.59,4.3367]
[1737986985557,1.4909,230.67,230.56,17.30422884]
[1737986985863,17.30422884,230.85,230.64,17.30422884]
[1737986986062,17.30422884,230.85,230.52,17.30422884]
[1737986986063,1.8691,230.84,230.68,17.30422884]
[1737986986259,1.8691,230.84,230.64,17.30422884]
[1737986986462,4.3339,230.75,230.66,4.3354]
[1737986986664,1.8691,230.84,230.6,3.38]
[1737986986665,17.30422884,230.81,230.6,20.68422884]
[1737986986965,4.3347,230.71,230.61,4.3363]
[1737986987264,4.3347,230.71,230.68,0.03329928]
[1737986987463,4.3347,230.71,230.62,4.3363]
[1737986987664,4.335,230.69,230.67,0.02952892]
[1737986987958,0.02878255,230.72,230.67,0.02952892]
[1737986988565,0.02878255,230.72,230.68,17.30422884]
[1737986988864,0.02878255,230.72,230.67,0.02952892]
[1737986989965,4.3347,230.71,230.67,0.02952892]
[1737986990166,0.02878255,230.72,230.67,0.02952892]
[1737986990667,4.3352,230.68,230.67,0.02952892]
[1737986991469,0.02878255,230.72,230.67,0.02952892]
[1737986992872,0.02878255,230.72,230.71,240.79314989]
[1737986992873,4.36318255,230.72,230.71,240.79314989]
[1737986993571,4.36318255,230.72,230.71,238.34034989]
[1737986993767,32.49801513,230.72,230.71,179.85611102]
[1737986994069,32.49801513,230.72,230.71,128.08911102]
[1737986994874,32.49801513,230.72,230.71,120.88651102]
[1737986995776,32.49801513,230.72,230.67,301.02096629]
[1737986995777,28.16361513,230.72,230.67,0.02952892]
[1737986995978,0.02878255,230.72,230.67,0.02952892]
[1737986999082,28.16361513,230.72,230.67,0.02952892]
[1737986999387,4.335,230.69,230.67,0.02952892]
[1737986999581,28.16361513,230.72,230.67,0.02952892]
[1737986999776,4.3348,230.7,230.67,0.02952892]
[1737987000480,28.16361513,230.72,230.67,0.02952892]
[1737987000777,0.02878255,230.72,230.67,0.02952892]
[1737987002385,4.3348,230.71,230.67,0.02952892]
[1737987002578,28.16361513,230.72,230.67,0.02952892]
[1737987003082,4.3352,230.68,230.67,0.02952892]
[1737987003581,4.335,230.7,230.67,0.02952892]
[1737987003782,1.8278,230.71,230.67,0.02952892]
[1737987005085,4.3351,230.69,230.67,0.02952892]
[1737987005285,0.02878255,230.72,230.67,0.02952892]
[1737987006181,4.3352,230.68,230.67,0.02952892]
[1737987006587,28.13483258,230.69,230.67,0.02952892]
[1737987006982,0.02878255,230.72,230.67,0.02952892]
[1737987007587,4.36318255,230.72,230.67,0.02952892]
[1737987008282,0.02878255,230.72,230.67,0.02952892]
[1737987008486,28.13483258,230.66,230.54,0.1245]
[1737987009083,4.3362,230.63,230.54,0.1245]
[1737987009285,28.13483258,230.7,230.54,0.1245]
[1737987009587,0.03309123,230.64,230.54,0.1245]
[1737987010088,0.03309123,230.64,230.58,4.337]
[1737987010282,0.03309123,230.64,230.54,0.1245]
[1737987010487,28.13483258,230.74,230.57,28.13483258]
[1737987010687,4.3343,230.73,230.61,4.3365]
[1737987011590,0.02797734,230.69,230.65,0.03319404]
[1737987012290,28.13483258,230.86,230.7,4.3348]
[1737987012485,28.13483258,230.86,230.67,3.3889]
[1737987012685,4.3332,230.79,230.67,3.3889]
[1737987012888,17.30032292,230.8,230.67,3.3889]
[1737987013082,17.30032292,230.76,230.53,20.68032292]
[1737987013389,0.03316125,230.67,230.62,0.02995772]
[1737987013588,0.03316125,230.67,230.54,3.3889]
[1737987013885,0.03316125,230.67,230.62,0.02826009]
[1737987015389,0.03316125,230.67,230.62,4.36456009]
[1737987015790,0.03316125,230.67,230.62,0.02826009]
[1737987015990,3.5909,230.75,230.62,0.02826009]
[1737987015991,4.334,230.75,230.65,4.3357]
[1737987016393,20.68032292,230.8,230.58,17.30032292]
[1737987016592,4.3337,230.77,230.66,4.3355]
[1737987016794,20.68032292,230.8,230.66,4.3355]
[1737987017091,0.03299394,230.75,230.71,0.0312108]
[1737987018792,3.3476,230.86,230.71,0.0312108]
[1737987018986,17.30032292,230.92,230.76,4.3336]
[1737987019191,17.30032292,230.92,230.7,17.30032292]
[1737987019891,0.03330869,230.83,230.79,0.0279559]
[1737987020093,17.30032292,230.92,230.79,0.0279559]
[1737987020393,0.02794659,230.83,230.79,0.0279559]
[1737987020593,17.30032292,230.92,230.79,0.0279559]
[1737987020888,4.3323,230.84,230.79,0.0279559]
[1737987021487,0.0287715,230.88,230.79,0.0279559]
[1737987021693,4.3324,230.83,230.79,0.0279559]
[1737987021893,17.30032292,230.84,230.79,0.0279559]
[1737987022092,4.3329,230.8,230.69,4.3349]
[1737987022291,4.3329,230.8,230.79,0.02808404]
[1737987022488,0.0323893,230.77,230.69,4.3349]
[1737987022694,17.30032292,230.84,230.67,3.4593]
[1737987022887,0.03272626,230.75,230.71,0.03176327]
[1737987023087,17.30032292,230.8,230.71,0.03176327]
[1737987023294,0.02931307,230.75,230.67,3.4593]
[1737987023495,0.02931307,230.75,230.73,0.02832467]
[1737987023693,17.30032292,230.76,230.6,3.4043]
[1737987023893,4.3339,230.75,230.72,0.02760787]
[1737987024093,17.30032292,230.76,230.63,4.3361]
[1737987024288,17.33188098,230.76,230.71,0.03165827]
[1737987025095,4.3345,230.72,230.71,0.03165827]
[1737987025495,21.63482292,230.72,230.71,5.827e-05]
[1737987027497,4.3342,230.74,230.71,5.827e-05]
[1737987027699,0.03155806,230.76,230.71,5.827e-05]
[1737987028401,17.33188098,230.76,230.71,5.827e-05]
[1737987028697,4.3344,230.72,230.71,5.827e-05]
[1737987028895,17.30032292,230.72,230.6,4.9918]
[1737987029597,17.30032292,230.68,230.5,17.30032292]
[1737987029797,17.30032292,230.68,230.51,4.8819]
[1737987030001,0.02805046,230.61,230.57,0.0327816]
[1737987030399,4.3371,230.58,230.51,3.2741]
[1737987030595,0.03147967,230.61,230.51,3.2741]
[1737987030797,0.03147967,230.61,230.52,0.0312187]
[1737987031001,0.03147967,230.61,230.54,4.3376]
[1737987031302,0.03147967,230.61,230.53,17.30032292]
[1737987031701,0.03147967,230.61,230.58,4.3369]
[1737987032404,3.4786,230.75,230.57,17.32926806]
[1737987032702,3.4786,230.75,230.57,17.30032292]
[1737987033305,17.30032292,230.78,230.62,17.30032292]
[1737987033504,0.02794887,230.68,230.64,0.02843903]
[1737987033705,17.30032292,230.78,230.63,1.827]
[1737987034105,0.03018947,230.68,230.64,0.0312525]
[1737987034302,0.0274247,230.73,230.64,0.0312525]
[1737987034502,4.3346,230.72,230.67,0.03186482]
[1737987034701,17.30032292,230.74,230.58,4.337]
[1737987034906,0.02861386,230.72,230.67,0.02962141]
[1737987035703,17.30032292,230.7,230.55,1.827]
[1737987036208,17.30032292,230.66,230.54,1.6078]
[1737987036602,17.30032292,230.66,230.49,1.9012]
[1737987036806,17.30032292,230.62,230.49,1.9012]
[1737987037010,0.02789777,230.6,230.55,0.03045999]
[1737987037410,17.30032292,230.58,230.55,0.03045999]
[1737987037908,17.30032292,230.58,230.44,1.5156]
[1737987038109,17.30032292,230.58,230.43,1.5428]
[1737987038505,28.18460267,230.56,230.43,1.5428]
[1737987038709,4.3386,230.5,230.43,1.5428]
[1737987039204,0.0292589,230.49,230.44,0.02767552]
[1737987040307,28.18460267,230.64,230.44,28.21227819]
[1737987040510,28.18460267,230.64,230.44,29.80240267]
[1737987041011,28.18460267,230.56,230.44,1.6178]
[1737987041506,4.3376,230.56,230.48,0.0274179]
[1737987041711,0.0329123,230.52,230.48,0.0274179]
[1737987041911,28.18460267,230.61,230.48,0.0274179]
[1737987042112,28.21715052,230.57,230.48,0.0274179]
[1737987042312,28.21715052,230.57,230.44,1.6178]
[1737987042514,0.03254785,230.57,230.5,0.02960919]
[1737987042707,4.36984785,230.57,230.5,0.02960919]
[1737987042907,0.03254785,230.57,230.5,0.02960919]
[1737987043510,28.18460267,230.51,230.31,28.18460267]
[1737987043707,28.18460267,230.46,230.29,3.4365]
[1737987043909,4.3399,230.43,230.33,4.3416]
[1737987044714,0.02815979,230.4,230.36,0.03101541]
[1737987045310,4.36865979,230.4,230.36,0.03101541]
[1737987045711,4.3408,230.38,230.36,0.03101541]
[1737987046011,0.02815979,230.4,230.36,0.03101541]
[1737987049119,4.3407,230.39,230.36,0.03101541]
[1737987049619,0.02815979,230.4,230.36,0.03101541]
[1737987053533,1.5265,230.49,230.36,0.03101541]
[1737987053732,3.38,230.54,230.38,28.18460267]
[1737987053931,3.3629,230.6,230.38,28.18460267]
[1737987054326,4.3384,230.51,230.38,28.18460267]
[1737987054732,0.03190632,230.47,230.42,0.03216384]
[1737987054927,4.3382,230.52,230.4,4.3403]
[1737987055124,28.18460267,230.57,230.4,4.3403]
[1737987055330,0.03291952,230.46,230.4,4.3403]
[1737987055524,28.18460267,230.57,230.46,0.03096673]
[1737987055725,28.18460267,230.49,230.35,3.534]
[1737987056227,28.18460267,230.49,230.4,0.03260028]
[1737987056428,0.0328918,230.44,230.4,0.03260028]
[1737987056734,4.3727918,230.44,230.4,0.03260028]
[1737987057131,0.0328918,230.44,230.4,0.03260028]
[1737987057536,4.3403,230.41,230.4,0.03260028]
[1737987057735,0.0328918,230.44,230.28,3.424]
[1737987057935,4.3412,230.36,230.28,3.424]
[1737987058135,28.18460267,230.41,230.28,3.424]
[1737987058335,28.18460267,230.41,230.22,102.56460267]
[1737987058536,28.18460267,230.41,230.16,28.18460267]
[1737987058537,28.18460267,230.33,230.17,3.424]
[1737987058735,28.18460267,230.29,230.12,28.18460267]
[1737987058936,0.02745855,230.27,230.23,0.03277432]
[1737987059136,4.3435,230.24,230.12,32.53030267]
[1737987059337,0.02745855,230.27,230.23,0.03091651]
[1737987059534,28.18460267,230.29,230.23,0.03091651]
[1737987059839,4.3439,230.22,230.11,3.424]
[1737987060238,28.18460267,230.29,230.24,0.0277942]
[1737987060438,0.02920142,230.19,230.11,3.424]
[1737987060633,28.18460267,230.25,230.11,3.424]
[1737987060938,0.02908484,230.17,230.13,0.03239402]
[1737987061741,28.18460267,230.29,230.13,0.03239402]
[1737987062039,4.343,230.27,230.15,4.3451]
[1737987062341,28.18460267,230.29,230.12,28.18460267]
[1737987063039,0.03321611,230.23,230.18,0.03301338]
[1737987063338,0.03321611,230.23,230.21,302.34627748]
[1737987064341,3.442,230.38,230.21,302.34627748]
[1737987064842,6.0586694,230.27,230.16,28.18460267]
[1737987065238,6.0586694,230.27,230.21,4.3439]
[1737987065539,0.02757053,230.24,230.19,0.02773141]
[1737987065739,6.0586694,230.27,230.22,4.3438]
[1737987066036,10.30020821,230.28,230.24,28.18460267]
[1737987066235,3.29360821,230.28,230.24,28.18460267]
[1737987066442,3.29360821,230.28,230.26,4.3431]
[1737987067143,3.29360821,230.28,230.25,0.03212025]
[1737987067338,3.29360821,230.28,230.27,4.3429]
[1737987067739,3.29360821,230.28,230.25,0.03212025]
[1737987069142,0.02827432,230.29,230.25,0.03212025]
[1737987069343,0.02827432,230.29,230.28,28.18460267]
[1737987069539,120.93851099,230.33,230.28,28.18460267]
[1737987069743,120.93851099,230.33,230.25,0.03212025]
[1737987070047,28.18460267,230.42,230.25,0.03212025]
[1737987070439,28.18460267,230.42,230.24,28.18460267]
[1737987070746,0.03051395,230.35,230.31,0.03018273]
[1737987071147,5.0667,230.48,230.28,28.18460267]
[1737987071441,0.03245408,230.35,230.31,0.03318204]
[1737987071641,5.0667,230.48,230.33,28.18460267]
[1737987071846,5.0667,230.48,230.37,28.18460267]
[1737987072147,0.0309087,230.43,230.37,28.18460267]
[1737987072546,0.0309087,230.43,230.4,0.02967847]
[1737987075248,4.3709087,230.43,230.4,0.02967847]
[1737987075451,0.0309087,230.43,230.4,0.02967847]
[1737987075646,0.0309087,230.43,230.29,28.18460267]
[1737987075847,0.0309087,230.43,230.29,32.52710267]
[1737987076043,3.4464,230.48,230.29,28.18460267]
[1737987076452,4.3406,230.4,230.29,32.52710267]
[1737987076652,4.3406,230.4,230.29,28.18460267]
[1737987076849,28.18460267,230.41,230.32,0.03318908]
[1737987077046,0.03105125,230.37,230.32,0.03318908]
[1737987077246,28.18460267,230.37,230.23,74.46]
[1737987077448,1.8986,230.36,230.23,74.46]
[1737987077950,1.5153,230.4,230.25,28.18460267]
[1737987078351,1.8986,230.47,230.29,28.18460267]
[1737987078546,0.03082173,230.35,230.29,28.18460267]
[1737987078748,0.03082173,230.35,230.3,0.03015405]
[1737987078949,1.6182,230.46,230.3,0.03015405]
[1737987079251,1.6182,230.46,230.33,28.18460267]
[1737987079453,1.6182,230.46,230.29,28.18460267]
[1737987079757,4.3398,230.44,230.32,4.3418]
[1737987079955,1.6182,230.46,230.29,28.18460267]
[1737987080251,0.03172458,230.4,230.35,0.03095319]
[1737987085054,4.3407,230.39,230.35,0.03095319]
[1737987085257,0.03172458,230.4,230.35,0.03095319]
[1737987087454,0.03172458,230.4,230.36,17.35865104]
[1737987087658,0.03172458,230.4,230.39,4.3406]
[1737987088659,0.03172458,230.4,230.36,4.341]
[1737987089159,0.03172458,230.4,230.35,0.03095319]
[1737987089358,0.03172458,230.4,230.37,4.341]
[1737987089554,0.03172458,230.4,230.35,0.03095319]
[1737987089753,0.03172458,230.4,230.39,4.3406]
[1737987089953,1.5487,230.53,230.36,17.35865104]
[1737987090158,1.598,230.59,230.44,17.35865104]
[1737987090357,1.8379,230.6,230.52,17.35865104]
[1737987090558,18.96015104,230.71,230.52,17.35865104]
[1737987090858,4.3361,230.63,230.52,17.35865104]
[1737987091058,0.02964677,230.64,230.59,0.02767547]
[1737987091257,0.02964677,230.64,230.48,17.35865104]
[1737987091465,3.5593,230.7,230.48,17.35865104]
[1737987091759,3.5593,230.7,230.53,17.35865104]
[1737987091955,3.5593,230.7,230.57,17.35865104]
[1737987092560,0.02992313,230.66,230.61,0.02873798]
[1737987092953,1.9669,230.7,230.59,28.13074686]
[1737987093159,0.03332041,230.66,230.61,0.03105922]
[1737987094662,28.16406727,230.66,230.48,102.55074686]
[1737987094856,28.16406727,230.66,230.42,3.36]
[1737987094857,28.13074686,230.66,230.44,28.13074686]
[1737987095062,4.3373,230.57,230.45,4.3394]
[1737987095561,4.3374,230.57,230.45,4.3394]
[1737987095762,0.03094611,230.53,230.49,0.03247483]
[1737987098363,0.03094611,230.53,230.49,28.16322169]
[1737987098959,0.03094611,230.53,230.51,4.3383]
[1737987099161,0.00584611,230.53,230.51,4.3383]
[1737987099358,1.609,230.69,230.49,28.16322169]
[1737987099555,1.609,230.69,230.59,4.3368]
[1737987099754,1.609,230.69,230.56,28.13074686]
[1737987100362,1.609,230.69,230.52,28.13074686]
[1737987100564,0.03301952,230.65,230.6,0.02978032]
[1737987104364,0.03301952,230.65,230.48,28.13074686]
[1737987104567,28.13074686,230.67,230.48,28.13074686]
[1737987105163,4.3363,230.63,230.52,4.3382]
[1737987105362,1.609,230.69,230.52,28.13074686]
[1737987105567,0.03205982,230.6,230.55,0.03071718]
[1737987105763,0.03205982,230.6,230.57,4.3372]
[1737987106668,0.03205982,230.6,230.55,0.03338898]
[1737987108270,0.03205982,230.6,230.44,28.13074686]
[1737987108469,1.8601,230.61,230.44,28.13074686]
[1737987109173,4.3376,230.56,230.46,4.3392]
[1737987109370,0.02992385,230.55,230.5,0.03155054]
[1737987111771,4.3381,230.53,230.5,0.03155054]
[1737987111971,0.02992385,230.55,230.4,28.13074686]
[1737987112166,1.5165,230.57,230.36,28.13074686]
[1737987112370,4.3384,230.51,230.4,4.3404]
[1737987112571,1.5165,230.57,230.4,4.3404]
[1737987113074,1.5165,230.57,230.38,4.3407]
[1737987113265,0.03069447,230.51,230.46,0.03227012]
[1737987113470,0.03069447,230.51,230.36,28.13074686]
[1737987113667,4.3387,230.5,230.36,28.13074686]
[1737987113873,1.9142,230.49,230.36,28.13074686]
[1737987114073,1.9142,230.49,230.41,28.13074686]
[1737987114274,1.5165,230.57,230.41,28.13074686]
[1737987114475,1.9142,230.56,230.41,28.13074686]
[1737987114676,0.03332245,230.51,230.49,4.3387]
[1737987114975,1.9142,230.56,230.47,17.33533519]
[1737987115173,0.03215123,230.52,230.48,0.0328075]
[1737987116673,0.03215123,230.52,230.51,4.3384]
[1737987117374,3.3273,230.65,230.55,4.3375]
[1737987117870,3.3273,230.65,230.57,4.3372]
[1737987118476,0.03063052,230.63,230.59,0.02954502]
[1737987120075,4.3364,230.62,230.59,0.02954502]
[1737987120276,0.03063052,230.63,230.59,0.02954502]
[1737987122081,0.03063052,230.63,230.46,28.15318952]
[1737987122484,4.3373,230.57,230.48,4.3388]
[1737987122679,1.9111,230.64,230.46,28.15318952]
[1737987122978,28.15318952,230.61,230.41,28.28748952]
[1737987123182,28.18298615,230.57,230.41,28.15318952]
[1737987123482,28.15318952,230.57,230.37,28.15318952]
[1737987123683,4.3384,230.51,230.42,4.34]
[1737987124080,28.15318952,230.57,230.42,4.34]
[1737987124278,1.5476,230.6,230.42,4.34]
[1737987124578,0.03061733,230.52,230.42,4.34]
[1737987124785,0.03061733,230.52,230.37,28.15318952]
[1737987125180,1.7809,230.53,230.37,28.15318952]
[1737987125483,0.03122732,230.47,230.37,28.15318952]
[1737987125882,0.03122732,230.47,230.41,28.15318952]
[1737987126083,29.93408952,230.53,230.33,28.15318952]
[1737987126380,4.3402,230.42,230.32,4.3419]
[1737987126781,0.03314741,230.39,230.29,102.55318952]